[Event "*** Titled Tuesday Blitz"]
[Site "Chess.com"]
[Date "2020.11.10"]
[Round "5"]
[White "geordie_derraugh"]
[Black "Radzio1987"]
[Result "1-0"]
[WhiteElo "2470"]
[BlackElo "2768"]
[TimeControl "180+1"]
[EndTime "10:57:06 PST"]
[Termination "geordie_derraugh won by resignation"]

1. e4 {[%clk 0:03:00.9]} 1... c6 {[%clk 0:02:58.5]} 2. c4 {[%clk 0:03:00.6]}
2... d5 {[%clk 0:02:59.4]} 3. exd5 {[%clk 0:03:01.1]} 3... cxd5 {[%clk
0:02:59.7]} 4. cxd5 {[%clk 0:03:01.9]} 4... Nf6 {[%clk 0:03:00.2]} 5. Nf3 {[%clk
0:03:02.4]} 5... Nxd5 {[%clk 0:02:58.4]} 6. Nc3 {[%clk 0:03:02.9]} 6... Nxc3
{[%clk 0:02:57.9]} 7. bxc3 {[%clk 0:03:02.3]} 7... g6 {[%clk 0:02:58.5]} 8. d4
{[%clk 0:03:02.4]} 8... Bg7 {[%clk 0:02:58.6]} 9. Bd3 {[%clk 0:03:02.9]} 9...
Nc6 {[%clk 0:02:58.1]} 10. O-O {[%clk 0:03:03.3]} 10... O-O {[%clk 0:02:58.1]}
11. Re1 {[%clk 0:03:03.3]} 11... Bg4 {[%clk 0:02:56.6]} 12. Bg5 {[%clk
0:03:01.6]} 12... Qd7 {[%clk 0:02:49.9]} 13. h3 {[%clk 0:02:45.2]} 13... Bxf3
{[%clk 0:02:48.5]} 14. Qxf3 {[%clk 0:02:46.1]} 14... e6 {[%clk 0:02:49]} 15.
Rab1 {[%clk 0:02:44.1]} 15... Rac8 {[%clk 0:02:48.4]} 16. Be4 {[%clk 0:02:32.5]}
16... b6 {[%clk 0:02:46.9]} 17. Bf6 {[%clk 0:02:21.6]} 17... Bxf6 {[%clk
0:02:41.3]} 18. Qxf6 {[%clk 0:02:22.5]} 18... Na5 {[%clk 0:02:38.8]} 19. Re3
{[%clk 0:02:19.7]} 19... Qd8 {[%clk 0:02:38.6]} 20. Qf4 {[%clk 0:02:15.6]} 20...
Nc4 {[%clk 0:02:37.8]} 21. Rg3 {[%clk 0:02:14.2]} 21... Nd6 {[%clk 0:02:05.6]}
22. Bc2 {[%clk 0:02:07.3]} 22... Qe7 {[%clk 0:02:05.5]} 23. h4 {[%clk
0:02:04.3]} 23... Rfe8 {[%clk 0:01:43.3]} 24. h5 {[%clk 0:01:57.2]} 24... e5
{[%clk 0:01:42.8]} 25. Qh6 {[%clk 0:01:46.7]} 25... e4 {[%clk 0:01:25.5]} 26.
hxg6 {[%clk 0:01:41]} 26... hxg6 {[%clk 0:01:17.8]} 27. Rh3 {[%clk 0:01:15.2]}
27... Qf6 {[%clk 0:01:17.6]} 28. Bb3 {[%clk 0:01:04.4]} 28... Nf5 {[%clk
0:01:12.7]} 29. Qf4 {[%clk 0:00:55.9]} 29... Kg7 {[%clk 0:01:07.6]} 30. g4
{[%clk 0:00:52.3]} 30... Nd6 {[%clk 0:01:01.2]} 31. Rh7+ {[%clk 0:00:47.6]} 1-0

[Event "*** Titled Tuesday Blitz"]
[Site "Chess.com"]
[Date "2020.11.10"]
[Round "5"]
[White "Harsha_Bharathakoti"]
[Black "denispopov"]
[Result "0-1"]
[WhiteElo "2791"]
[BlackElo "1843"]
[TimeControl "180+1"]
[EndTime "10:57:08 PST"]
[Termination "denispopov won by resignation"]

1. Nf3 {[%clk 0:03:00.9]} 1... Nf6 {[%clk 0:02:59.1]} 2. c4 {[%clk 0:02:44.4]}
2... g6 {[%clk 0:02:57.8]} 3. Nc3 {[%clk 0:02:41.1]} 3... d5 {[%clk 0:02:57.9]}
4. cxd5 {[%clk 0:02:36.9]} 4... Nxd5 {[%clk 0:02:58.8]} 5. e4 {[%clk 0:02:36.1]}
5... Nxc3 {[%clk 0:02:58]} 6. dxc3 {[%clk 0:02:37]} 6... Qxd1+ {[%clk
0:02:56.8]} 7. Kxd1 {[%clk 0:02:33.6]} 7... Bg7 {[%clk 0:02:57.3]} 8. h4 {[%clk
0:02:31.1]} 8... Nd7 {[%clk 0:02:45.9]} 9. h5 {[%clk 0:02:11.2]} 9... O-O {[%clk
0:02:44.5]} 10. Bc4 {[%clk 0:01:48.2]} 10... Ne5 {[%clk 0:02:21.1]} 11. Nxe5
{[%clk 0:01:48]} 11... Bxe5 {[%clk 0:02:22]} 12. Ke2 {[%clk 0:01:14.7]} 12...
Bd7 {[%clk 0:02:18.5]} 13. Be3 {[%clk 0:01:07]} 13... Bc6 {[%clk 0:02:10.7]} 14.
f3 {[%clk 0:01:04.8]} 14... b6 {[%clk 0:02:03.2]} 15. hxg6 {[%clk 0:00:52.5]}
15... hxg6 {[%clk 0:02:04.1]} 16. Rh6 {[%clk 0:00:53]} 16... e6 {[%clk
0:01:59.8]} 17. Rah1 {[%clk 0:00:52.1]} 17... Rfd8 {[%clk 0:01:57.8]} 18. Bg5
{[%clk 0:00:43.1]} 18... Rd7 {[%clk 0:01:56.8]} 19. Rh7 {[%clk 0:00:35.5]} 19...
Bg7 {[%clk 0:01:46.4]} 20. Rxg7+ {[%clk 0:00:32.4]} 20... Kxg7 {[%clk
0:01:47.3]} 21. e5 {[%clk 0:00:33.2]} 21... f6 {[%clk 0:01:35]} 22. exf6+ {[%clk
0:00:15.4]} 22... Kf7 {[%clk 0:01:31.1]} 23. Rh7+ {[%clk 0:00:15.1]} 23... Kg8
{[%clk 0:01:29.9]} 24. Bxe6+ {[%clk 0:00:14.3]} 24... Kxh7 {[%clk 0:01:28.1]}
0-1

[Event "*** Titled Tuesday Blitz"]
[Site "Chess.com"]
[Date "2020.11.10"]
[Round "5"]
[White "ajedrezhoy"]
[Black "Kavyev_Ruslan"]
[Result "0-1"]
[WhiteElo "2224"]
[BlackElo "2400"]
[TimeControl "180+1"]
[EndTime "10:57:09 PST"]
[Termination "Kavyev_Ruslan won on time"]

1. Nf3 {[%clk 0:03:00.9]} 1... Nf6 {[%clk 0:02:59.8]} 2. b3 {[%clk 0:03:00.4]}
2... g6 {[%clk 0:02:59.5]} 3. Bb2 {[%clk 0:03:00]} 3... Bg7 {[%clk 0:03:00.4]}
4. g3 {[%clk 0:03:00]} 4... O-O {[%clk 0:03:00.7]} 5. Bg2 {[%clk 0:03:00]} 5...
b6 {[%clk 0:03:00.4]} 6. O-O {[%clk 0:02:58.9]} 6... Bb7 {[%clk 0:03:00.8]} 7.
c4 {[%clk 0:02:59.1]} 7... c5 {[%clk 0:03:01.5]} 8. Nc3 {[%clk 0:02:58.5]} 8...
Nc6 {[%clk 0:02:57.3]} 9. d4 {[%clk 0:02:55.3]} 9... Nxd4 {[%clk 0:02:57.5]} 10.
Nxd4 {[%clk 0:02:54.4]} 10... Bxg2 {[%clk 0:02:57.3]} 11. Kxg2 {[%clk
0:02:53.5]} 11... cxd4 {[%clk 0:02:57.5]} 12. Qxd4 {[%clk 0:02:53.3]} 12... e6
{[%clk 0:02:54]} 13. Qd3 {[%clk 0:02:50.3]} 13... Qe7 {[%clk 0:02:52.8]} 14. a4
{[%clk 0:02:42.2]} 14... Rfd8 {[%clk 0:02:52.8]} 15. e4 {[%clk 0:02:32]} 15...
Qb4 {[%clk 0:02:45.4]} 16. Ba3 {[%clk 0:02:20.9]} 16... Qa5 {[%clk 0:02:35.2]}
17. Nb5 {[%clk 0:01:40.9]} 17... d5 {[%clk 0:02:31.7]} 18. cxd5 {[%clk
0:01:31.1]} 18... exd5 {[%clk 0:02:31.7]} 19. e5 {[%clk 0:01:30.8]} 19... Ne4
{[%clk 0:02:31.9]} 20. f4 {[%clk 0:00:52.3]} 20... Rac8 {[%clk 0:02:31]} 21. Be7
{[%clk 0:00:46.5]} 21... Rd7 {[%clk 0:02:27]} 22. b4 {[%clk 0:00:45.1]} 22...
Qa6 {[%clk 0:02:25.9]} 23. Bh4 {[%clk 0:00:29.8]} 23... Rc3 {[%clk 0:02:14.5]}
24. Qd4 {[%clk 0:00:27.6]} 24... Rc4 {[%clk 0:02:14.3]} 25. Qb2 {[%clk
0:00:24.6]} 25... d4 {[%clk 0:02:09.7]} 26. Rac1 {[%clk 0:00:21.7]} 26... Rxc1
{[%clk 0:02:08.7]} 27. Rxc1 {[%clk 0:00:20.9]} 27... Qb7 {[%clk 0:02:09.6]} 28.
Kg1 {[%clk 0:00:19.4]} 28... d3 {[%clk 0:02:02.8]} 29. Nd4 {[%clk 0:00:17.3]}
29... d2 {[%clk 0:01:56.2]} 30. Rd1 {[%clk 0:00:17.1]} 30... Qd5 {[%clk
0:01:56.4]} 31. Nf3 {[%clk 0:00:16.8]} 31... Qd3 {[%clk 0:01:52.8]} 32. Rf1
{[%clk 0:00:03]} 32... Qxf1+ {[%clk 0:01:52.1]} 0-1

[Event "*** Titled Tuesday Blitz"]
[Site "Chess.com"]
[Date "2020.11.10"]
[Round "5"]
[White "RobertoJBM"]
[Black "TurboSteen"]
[Result "1-0"]
[WhiteElo "2778"]
[BlackElo "2042"]
[TimeControl "180+1"]
[EndTime "10:57:19 PST"]
[Termination "RobertoJBM won on time"]

1. d4 {[%clk 0:03:00.9]} 1... Nf6 {[%clk 0:02:58.4]} 2. c4 {[%clk 0:03:00.4]}
2... g6 {[%clk 0:02:58.4]} 3. Nc3 {[%clk 0:03:00.3]} 3... d5 {[%clk 0:02:58.8]}
4. Nf3 {[%clk 0:02:59.5]} 4... Bg7 {[%clk 0:02:58.1]} 5. Qb3 {[%clk 0:02:59]}
5... dxc4 {[%clk 0:02:56.8]} 6. Qxc4 {[%clk 0:02:59.9]} 6... O-O {[%clk
0:02:56.6]} 7. e4 {[%clk 0:02:59.3]} 7... Nc6 {[%clk 0:02:54.9]} 8. Be2 {[%clk
0:02:51.2]} 8... e5 {[%clk 0:02:52.3]} 9. d5 {[%clk 0:02:51.5]} 9... Nd4 {[%clk
0:02:16.1]} 10. O-O {[%clk 0:02:50.5]} 10... c6 {[%clk 0:01:51.6]} 11. dxc6
{[%clk 0:02:37.2]} 11... Nxc6 {[%clk 0:01:47.8]} 12. Rd1 {[%clk 0:02:33.9]}
12... Qe7 {[%clk 0:01:45.1]} 13. Be3 {[%clk 0:02:32.1]} 13... Be6 {[%clk
0:01:41.4]} 14. Qc5 {[%clk 0:02:29.7]} 14... Qxc5 {[%clk 0:01:39.3]} 15. Bxc5
{[%clk 0:02:30.6]} 15... Rfd8 {[%clk 0:01:39.2]} 16. Bb5 {[%clk 0:02:28.4]}
16... Nd4 {[%clk 0:01:37.5]} 17. Ng5 {[%clk 0:02:02.1]} 17... Bd7 {[%clk
0:01:28.4]} 18. Bc4 {[%clk 0:01:07.5]} 1-0

[Event "*** Titled Tuesday Blitz"]
[Site "Chess.com"]
[Date "2020.11.10"]
[Round "5"]
[White "IwkooO"]
[Black "Slovak_fighter2000"]
[Result "1-0"]
[WhiteElo "2621"]
[BlackElo "2459"]
[TimeControl "180+1"]
[EndTime "10:57:30 PST"]
[Termination "IwkooO won by resignation"]

1. e4 {[%clk 0:03:00.9]} 1... e6 {[%clk 0:02:57.6]} 2. d4 {[%clk 0:03:00.1]}
2... d5 {[%clk 0:02:56.5]} 3. Nd2 {[%clk 0:03:00.4]} 3... a6 {[%clk 0:02:55.1]}
4. Ngf3 {[%clk 0:02:57.8]} 4... c5 {[%clk 0:02:55.5]} 5. exd5 {[%clk 0:02:53.7]}
5... exd5 {[%clk 0:02:56.4]} 6. dxc5 {[%clk 0:02:54.3]} 6... Bxc5 {[%clk
0:02:56.8]} 7. Bd3 {[%clk 0:02:54.9]} 7... Nf6 {[%clk 0:02:52.6]} 8. O-O {[%clk
0:02:55.3]} 8... O-O {[%clk 0:02:51.7]} 9. Nb3 {[%clk 0:02:55.9]} 9... Bb6
{[%clk 0:02:51.4]} 10. Re1 {[%clk 0:02:54.7]} 10... Nc6 {[%clk 0:02:45.7]} 11.
Be3 {[%clk 0:02:54]} 11... Bg4 {[%clk 0:02:42.9]} 12. h3 {[%clk 0:02:52.1]}
12... Bh5 {[%clk 0:02:41.3]} 13. c3 {[%clk 0:02:46.9]} 13... Bc7 {[%clk
0:02:26.9]} 14. Bc2 {[%clk 0:02:18.6]} 14... Re8 {[%clk 0:02:23.4]} 15. g4
{[%clk 0:01:54.7]} 15... Bg6 {[%clk 0:02:22.7]} 16. Nbd4 {[%clk 0:01:49.1]}
16... Qd6 {[%clk 0:02:16.9]} 17. Nf5 {[%clk 0:01:37.7]} 17... Bxf5 {[%clk
0:02:13.9]} 18. Bxf5 {[%clk 0:01:38.6]} 18... Ne4 {[%clk 0:02:05.5]} 19. Qd3
{[%clk 0:01:31.8]} 19... Rad8 {[%clk 0:02:02.9]} 20. Rad1 {[%clk 0:01:24]} 20...
Ne5 {[%clk 0:01:57.3]} 21. Nxe5 {[%clk 0:01:23.4]} 21... Qxe5 {[%clk 0:01:57.3]}
22. f4 {[%clk 0:01:23.5]} 22... Qe7 {[%clk 0:01:53.1]} 23. Kg2 {[%clk
0:01:17.7]} 23... g6 {[%clk 0:01:46]} 24. Bxe4 {[%clk 0:01:15.4]} 24... Qxe4+
{[%clk 0:01:46.9]} 25. Qxe4 {[%clk 0:01:13.7]} 25... dxe4 {[%clk 0:01:47.8]} 26.
Kf2 {[%clk 0:01:08.7]} 26... f5 {[%clk 0:01:29.3]} 27. gxf5 {[%clk 0:01:07.1]}
27... gxf5 {[%clk 0:01:30.2]} 28. Rg1+ {[%clk 0:01:07.7]} 28... Kf7 {[%clk
0:01:29.8]} 29. Rxd8 {[%clk 0:01:04.7]} 29... Rxd8 {[%clk 0:01:26.4]} 30. Rg5
{[%clk 0:01:04.4]} 30... Ke6 {[%clk 0:01:12.4]} 31. Rh5 {[%clk 0:01:03.9]} 31...
Rd7 {[%clk 0:01:11.2]} 32. Rh6+ {[%clk 0:01:01.5]} 32... Kd5 {[%clk 0:01:09]}
33. b3 {[%clk 0:01:02]} 33... Bd6 {[%clk 0:01:03.6]} 34. c4+ {[%clk 0:00:59.8]}
34... Kc6 {[%clk 0:00:59.3]} 35. c5 {[%clk 0:01:00.2]} 35... Kd5 {[%clk
0:00:53.2]} 36. cxd6 {[%clk 0:00:58.9]} 36... Rxd6 {[%clk 0:00:54.1]} 37. Rxh7
{[%clk 0:00:58.8]} 37... b5 {[%clk 0:00:51.2]} 38. Re7 {[%clk 0:00:58.1]} 1-0

[Event "*** Titled Tuesday Blitz"]
[Site "Chess.com"]
[Date "2020.11.10"]
[Round "5"]
[White "Shtembuliak"]
[Black "LawrenceTrent"]
[Result "1-0"]
[WhiteElo "2874"]
[BlackElo "2549"]
[TimeControl "180+1"]
[EndTime "10:57:35 PST"]
[Termination "Shtembuliak won by resignation"]

1. c4 {[%clk 0:03:00.9]} 1... f5 {[%clk 0:02:50.1]} 2. d4 {[%clk 0:02:59.4]}
2... Nf6 {[%clk 0:02:49.1]} 3. Nf3 {[%clk 0:02:59]} 3... e6 {[%clk 0:02:48.6]}
4. g3 {[%clk 0:02:58.6]} 4... Bb4+ {[%clk 0:02:46.9]} 5. Nbd2 {[%clk 0:02:52.8]}
5... O-O {[%clk 0:02:45.3]} 6. Bg2 {[%clk 0:02:53.3]} 6... d6 {[%clk 0:02:35.4]}
7. O-O {[%clk 0:02:53.2]} 7... Qe8 {[%clk 0:02:35.3]} 8. Nb3 {[%clk 0:02:46.6]}
8... d5 {[%clk 0:02:32.2]} 9. c5 {[%clk 0:02:44.6]} 9... Nc6 {[%clk 0:02:27]}
10. a3 {[%clk 0:02:32.2]} 10... Ba5 {[%clk 0:02:25]} 11. Ne5 {[%clk 0:02:32.5]}
11... b6 {[%clk 0:02:24.3]} 12. Bf4 {[%clk 0:02:19.8]} 12... Ba6 {[%clk
0:02:16.2]} 13. Rc1 {[%clk 0:02:00.5]} 13... Nxe5 {[%clk 0:02:07.5]} 14. Bxe5
{[%clk 0:02:00.4]} 14... c6 {[%clk 0:01:59.5]} 15. Nxa5 {[%clk 0:01:25.5]} 15...
bxa5 {[%clk 0:01:57.8]} 16. Bc7 {[%clk 0:01:18.7]} 16... a4 {[%clk 0:01:56]} 17.
Qxa4 {[%clk 0:01:17]} 17... Bxe2 {[%clk 0:01:55.9]} 18. Rfe1 {[%clk 0:01:17.3]}
18... Bb5 {[%clk 0:01:48.2]} 19. Qc2 {[%clk 0:01:17.1]} 19... Rf7 {[%clk
0:01:47.1]} 20. Bf4 {[%clk 0:01:15.6]} 20... a5 {[%clk 0:01:37.4]} 21. b3 {[%clk
0:01:14.6]} 21... a4 {[%clk 0:01:37.2]} 22. b4 {[%clk 0:01:06.9]} 22... h6
{[%clk 0:01:33.4]} 23. Bf1 {[%clk 0:01:06.6]} 23... Bxf1 {[%clk 0:01:26.7]} 24.
Rxf1 {[%clk 0:01:06.9]} 24... g5 {[%clk 0:01:22.3]} 25. Be5 {[%clk 0:01:07.1]}
25... Ng4 {[%clk 0:01:15.6]} 26. Rfe1 {[%clk 0:01:04.4]} 26... Rf8 {[%clk
0:00:42.7]} 27. Bd6 {[%clk 0:01:02.5]} 27... Qh5 {[%clk 0:00:41.7]} 28. f3
{[%clk 0:01:02.7]} 28... Nf6 {[%clk 0:00:35.6]} 29. Bxf8 {[%clk 0:01:02.8]}
29... Rxf8 {[%clk 0:00:35.4]} 30. Rxe6 {[%clk 0:00:58.6]} 30... Qxf3 {[%clk
0:00:35]} 31. Rf1 {[%clk 0:00:58.5]} 31... Qxa3 {[%clk 0:00:34.2]} 32. Qxf5
{[%clk 0:00:58.3]} 1-0

[Event "*** Titled Tuesday Blitz"]
[Site "Chess.com"]
[Date "2020.11.10"]
[Round "5"]
[White "AvitalBor"]
[Black "Unknown_IM"]
[Result "1-0"]
[WhiteElo "2691"]
[BlackElo "2374"]
[TimeControl "180+1"]
[EndTime "10:57:36 PST"]
[Termination "AvitalBor won by checkmate"]

1. e4 {[%clk 0:02:55.9]} 1... e5 {[%clk 0:02:59.2]} 2. Nf3 {[%clk 0:02:55.5]}
2... Nc6 {[%clk 0:02:58.3]} 3. Bb5 {[%clk 0:02:56]} 3... f5 {[%clk 0:02:57.2]}
4. d3 {[%clk 0:02:55.6]} 4... d6 {[%clk 0:02:41.5]} 5. Nc3 {[%clk 0:02:50.1]}
5... Nf6 {[%clk 0:02:40.8]} 6. h3 {[%clk 0:02:30.3]} 6... Bd7 {[%clk 0:02:34.6]}
7. exf5 {[%clk 0:02:29.7]} 7... Be7 {[%clk 0:02:31.8]} 8. d4 {[%clk 0:02:28.2]}
8... exd4 {[%clk 0:02:31.2]} 9. Nxd4 {[%clk 0:02:27.4]} 9... Nxd4 {[%clk
0:02:28.2]} 10. Qxd4 {[%clk 0:02:26.8]} 10... O-O {[%clk 0:02:24.2]} 11. Bd3
{[%clk 0:02:22.7]} 11... c5 {[%clk 0:02:22]} 12. Qf4 {[%clk 0:02:13.6]} 12...
Bc6 {[%clk 0:02:20]} 13. O-O {[%clk 0:02:13.2]} 13... d5 {[%clk 0:02:17.8]} 14.
Re1 {[%clk 0:01:52.1]} 14... Bd6 {[%clk 0:02:16.6]} 15. Qh4 {[%clk 0:01:51.7]}
15... d4 {[%clk 0:02:15]} 16. Nb5 {[%clk 0:01:40]} 16... Bb8 {[%clk 0:02:06.4]}
17. Bf4 {[%clk 0:01:38.3]} 17... Bxf4 {[%clk 0:02:04.1]} 18. Qxf4 {[%clk
0:01:36.6]} 18... Bxb5 {[%clk 0:01:53.8]} 19. Bxb5 {[%clk 0:01:34.5]} 19... a6
{[%clk 0:01:45.5]} 20. Bc4+ {[%clk 0:01:33.7]} 20... Kh8 {[%clk 0:01:45]} 21. a4
{[%clk 0:01:33.8]} 21... Qb6 {[%clk 0:01:43.7]} 22. b3 {[%clk 0:01:31.1]} 22...
Rae8 {[%clk 0:01:40.5]} 23. Re6 {[%clk 0:01:30.7]} 23... Rxe6 {[%clk 0:01:40]}
24. fxe6 {[%clk 0:01:29.7]} 24... h6 {[%clk 0:01:38.2]} 25. a5 {[%clk
0:01:27.2]} 25... Qb4 {[%clk 0:01:37.6]} 26. Qe5 {[%clk 0:01:08.6]} 26... Qd2
{[%clk 0:01:32.8]} 27. e7 {[%clk 0:01:06.6]} 27... Ra8 {[%clk 0:01:19.9]} 28.
Bd3 {[%clk 0:01:04.1]} 28... Qg5 {[%clk 0:01:14.9]} 29. Re1 {[%clk 0:01:01.7]}
29... Qxe5 {[%clk 0:01:14.5]} 30. Rxe5 {[%clk 0:01:01.3]} 30... Kg8 {[%clk
0:01:12.8]} 31. Bg6 {[%clk 0:01:01.3]} 31... Rc8 {[%clk 0:01:09.7]} 32. e8=R+
{[%clk 0:00:58.4]} 32... Nxe8 {[%clk 0:01:09.4]} 33. Rxe8+ {[%clk 0:00:58.5]}
33... Rxe8 {[%clk 0:01:08.6]} 34. Bxe8 {[%clk 0:00:59]} 34... Kf8 {[%clk
0:01:09.1]} 35. Bd7 {[%clk 0:00:59.2]} 35... Ke7 {[%clk 0:01:10]} 36. Bc8 {[%clk
0:00:59.4]} 36... Kd6 {[%clk 0:01:09.9]} 37. Bxb7 {[%clk 0:00:59]} 37... d3
{[%clk 0:01:09.6]} 38. cxd3 {[%clk 0:00:58.8]} 38... Ke5 {[%clk 0:01:09.8]} 39.
Bxa6 {[%clk 0:00:58.4]} 39... Kd6 {[%clk 0:01:10.7]} 40. Bc4 {[%clk 0:00:58.5]}
40... Kc7 {[%clk 0:01:11.6]} 41. f4 {[%clk 0:00:58.9]} 41... g6 {[%clk
0:01:11.6]} 42. g4 {[%clk 0:00:58.3]} 42... g5 {[%clk 0:01:12.5]} 43. f5 {[%clk
0:00:58.3]} 43... Kd6 {[%clk 0:01:12.6]} 44. a6 {[%clk 0:00:58]} 44... Ke5
{[%clk 0:01:13.5]} 45. Kf2 {[%clk 0:00:58]} 45... Kf4 {[%clk 0:01:14.4]} 46. a7
{[%clk 0:00:57.4]} 46... Ke5 {[%clk 0:01:15.3]} 47. Ke3 {[%clk 0:00:57.8]} 47...
h5 {[%clk 0:01:15.6]} 48. a8=Q {[%clk 0:00:56.9]} 48... h4 {[%clk 0:01:16.5]}
49. Qd5+ {[%clk 0:00:55.8]} 49... Kf6 {[%clk 0:01:17]} 50. Qf7+ {[%clk
0:00:56.1]} 50... Ke5 {[%clk 0:01:16.9]} 51. Qe7# {[%clk 0:00:56]} 1-0

[Event "*** Titled Tuesday Blitz"]
[Site "Chess.com"]
[Date "2020.11.10"]
[Round "5"]
[White "Mikasinski"]
[Black "GMTalks_Youtube"]
[Result "0-1"]
[WhiteElo "2490"]
[BlackElo "2632"]
[TimeControl "180+1"]
[EndTime "10:57:36 PST"]
[Termination "GMTalks_Youtube won on time"]

1. e4 {[%clk 0:03:00.9]} 1... e5 {[%clk 0:02:58.6]} 2. Nf3 {[%clk 0:03:01]} 2...
Nc6 {[%clk 0:02:57.5]} 3. Nc3 {[%clk 0:03:01.7]} 3... Nf6 {[%clk 0:02:56.4]} 4.
Bb5 {[%clk 0:03:02.4]} 4... Bb4 {[%clk 0:02:54.6]} 5. O-O {[%clk 0:03:02.9]}
5... O-O {[%clk 0:02:50]} 6. d3 {[%clk 0:03:03.3]} 6... Bxc3 {[%clk 0:02:47.8]}
7. bxc3 {[%clk 0:03:02.6]} 7... d6 {[%clk 0:02:48]} 8. Re1 {[%clk 0:03:01.3]}
8... Ne7 {[%clk 0:02:45.2]} 9. d4 {[%clk 0:03:01.3]} 9... c6 {[%clk 0:02:32.6]}
10. dxe5 {[%clk 0:02:49]} 10... dxe5 {[%clk 0:02:29.7]} 11. Ba3 {[%clk
0:02:40.9]} 11... Qxd1 {[%clk 0:02:01.3]} 12. Raxd1 {[%clk 0:02:39.5]} 12... Re8
{[%clk 0:02:01]} 13. Bc4 {[%clk 0:02:15]} 13... Ng6 {[%clk 0:01:43.7]} 14. Ng5
{[%clk 0:02:10.3]} 14... Nh8 {[%clk 0:01:39.2]} 15. f4 {[%clk 0:01:14.5]} 15...
Bg4 {[%clk 0:01:30.8]} 16. Rd2 {[%clk 0:00:25.2]} 16... exf4 {[%clk 0:01:28.1]}
17. e5 {[%clk 0:00:20.6]} 17... h6 {[%clk 0:01:23.6]} 18. Nf3 {[%clk 0:00:02.7]}
18... Nd5 {[%clk 0:01:19.7]} 19. Bxd5 {[%clk 0:00:02.2]} 19... cxd5 {[%clk
0:01:20.3]} 20. Rxd5 {[%clk 0:00:01.6]} 20... Ng6 {[%clk 0:01:19.7]} 21. Red1
{[%clk 0:00:01.3]} 21... Nxe5 {[%clk 0:01:12.8]} 22. Nxe5 {[%clk 0:00:01.5]}
22... Bxd1 {[%clk 0:01:12.2]} 23. Kf2 {[%clk 0:00:01.7]} 23... Bxc2 {[%clk
0:01:10.8]} 24. Bc5 {[%clk 0:00:01.1]} 24... Be4 {[%clk 0:01:09.6]} 0-1

[Event "*** Titled Tuesday Blitz"]
[Site "Chess.com"]
[Date "2020.11.10"]
[Round "5"]
[White "ErikBlomqvist"]
[Black "Matols"]
[Result "1-0"]
[WhiteElo "2475"]
[BlackElo "2257"]
[TimeControl "180+1"]
[EndTime "10:57:37 PST"]
[Termination "ErikBlomqvist won by checkmate"]

1. e4 {[%clk 0:03:00.9]} 1... e6 {[%clk 0:02:57.6]} 2. d4 {[%clk 0:02:58.7]}
2... d5 {[%clk 0:02:57.4]} 3. e5 {[%clk 0:02:59.4]} 3... c5 {[%clk 0:02:56.8]}
4. c3 {[%clk 0:02:59.9]} 4... Qb6 {[%clk 0:02:56.5]} 5. Nf3 {[%clk 0:02:57.9]}
5... Nc6 {[%clk 0:02:56.4]} 6. a3 {[%clk 0:02:56.5]} 6... Nh6 {[%clk 0:02:56.2]}
7. Bd3 {[%clk 0:02:52.2]} 7... cxd4 {[%clk 0:02:44.6]} 8. b4 {[%clk 0:02:50.4]}
8... dxc3 {[%clk 0:02:38.9]} 9. Nxc3 {[%clk 0:02:50.3]} 9... Bd7 {[%clk
0:02:29.9]} 10. O-O {[%clk 0:02:49.9]} 10... Rc8 {[%clk 0:02:25.7]} 11. Ra2
{[%clk 0:02:22.9]} 11... Be7 {[%clk 0:02:03.5]} 12. Rc2 {[%clk 0:02:17]} 12...
O-O {[%clk 0:01:51.8]} 13. Bxh6 {[%clk 0:01:40.5]} 13... gxh6 {[%clk 0:01:51.1]}
14. Qd2 {[%clk 0:01:40.9]} 14... Kg7 {[%clk 0:01:49.7]} 15. Qf4 {[%clk
0:01:40.2]} 15... f5 {[%clk 0:01:44.5]} 16. exf6+ {[%clk 0:01:33.3]} 16... Bxf6
{[%clk 0:01:42.1]} 17. Qg4+ {[%clk 0:01:30.5]} 17... Kh8 {[%clk 0:01:40.9]} 18.
Nxd5 {[%clk 0:01:30.2]} 18... exd5 {[%clk 0:01:21.7]} 19. Qxd7 {[%clk 0:01:30]}
19... Rc7 {[%clk 0:01:13.1]} 20. Qxd5 {[%clk 0:01:27.1]} 20... Rg7 {[%clk
0:01:04.9]} 21. b5 {[%clk 0:01:15.2]} 21... Nd4 {[%clk 0:01:00.8]} 22. Nxd4
{[%clk 0:01:13.3]} 22... Bxd4 {[%clk 0:01:00.2]} 23. g3 {[%clk 0:01:03.7]} 23...
Rgf7 {[%clk 0:00:55.7]} 24. Kg2 {[%clk 0:00:59.3]} 24... Bxf2 {[%clk 0:00:34.7]}
25. Rc8 {[%clk 0:00:59.2]} 25... Qe3 {[%clk 0:00:15.4]} 26. Qxf7 {[%clk
0:00:57]} 26... Rxc8 {[%clk 0:00:12.5]} 27. Qxh7# {[%clk 0:00:56.9]} 1-0

[Event "*** Titled Tuesday Blitz"]
[Site "Chess.com"]
[Date "2020.11.10"]
[Round "5"]
[White "hungrycaterpillar4"]
[Black "rasmussvane"]
[Result "0-1"]
[WhiteElo "2627"]
[BlackElo "2884"]
[TimeControl "180+1"]
[EndTime "10:57:38 PST"]
[Termination "rasmussvane won by resignation"]

1. e4 {[%clk 0:03:00.9]} 1... c6 {[%clk 0:02:59.1]} 2. b3 {[%clk 0:02:57.7]}
2... d5 {[%clk 0:03:00]} 3. Bb2 {[%clk 0:02:57.8]} 3... dxe4 {[%clk 0:02:59.3]}
4. Nc3 {[%clk 0:02:57.3]} 4... Nf6 {[%clk 0:02:59.7]} 5. Nge2 {[%clk 0:02:57.1]}
5... e5 {[%clk 0:02:42.8]} 6. Ng3 {[%clk 0:02:56.3]} 6... Qd4 {[%clk 0:02:24]}
7. Qe2 {[%clk 0:02:48]} 7... Bg4 {[%clk 0:01:48.8]} 8. f3 {[%clk 0:02:47.1]}
8... exf3 {[%clk 0:01:49.7]} 9. gxf3 {[%clk 0:02:48]} 9... Be6 {[%clk
0:01:50.3]} 10. O-O-O {[%clk 0:02:47.6]} 10... Nbd7 {[%clk 0:01:48.3]} 11. Bg2
{[%clk 0:02:20.6]} 11... O-O-O {[%clk 0:01:44.3]} 12. Rhf1 {[%clk 0:01:51.9]}
12... Be7 {[%clk 0:01:43.1]} 13. f4 {[%clk 0:01:42.3]} 13... exf4 {[%clk
0:01:33.9]} 14. Nd5 {[%clk 0:01:35.3]} 14... Ba3 {[%clk 0:01:33]} 15. c3 {[%clk
0:01:27.6]} 15... Bxb2+ {[%clk 0:01:30.6]} 16. Kxb2 {[%clk 0:01:28.5]} 16... Qe5
{[%clk 0:01:24.5]} 17. Nxf4 {[%clk 0:01:19.7]} 17... Bg4 {[%clk 0:01:21.4]} 18.
Qxe5 {[%clk 0:01:07.4]} 18... Nxe5 {[%clk 0:01:22.3]} 19. Rde1 {[%clk
0:00:37.3]} 19... Rxd2+ {[%clk 0:01:16.5]} 20. Kc1 {[%clk 0:00:35]} 20... Rxg2
{[%clk 0:01:16.4]} 21. Rxe5 {[%clk 0:00:27.9]} 21... Rxa2 {[%clk 0:01:13]} 22.
Re7 {[%clk 0:00:10.1]} 22... Rf8 {[%clk 0:01:03.9]} 23. h3 {[%clk 0:00:08.3]}
23... Bd7 {[%clk 0:01:00]} 24. Ngh5 {[%clk 0:00:08.5]} 24... Nxh5 {[%clk
0:00:58.6]} 25. Nxh5 {[%clk 0:00:09.4]} 25... Ra1+ {[%clk 0:00:58.7]} 0-1